fUSD/lending_fUSD_20240825
["ID","MTS","AMOUNT","RATE_DAILY","PERIOD"]
[335931200,1724609439064,-679.32234274,0.00010999,2]
[335931201,1724609439074,-143.16783273,0.00010999,2]
[335931202,1724609439090,-1341.60216727,0.00010999,2]
[335931203,1724609439099,-1911.5825461,0.00010999,2]
[335931204,1724609439110,-1177.0,0.00010999,2]
[335931205,1724609439121,-172.9374539,0.00010999,2]
[335931206,1724609439131,-1484.77,0.00010999,2]
[335931207,1724609439140,-1484.77,0.00010999,2]
[335931208,1724609439150,-3201.32602828,0.00010999,2]
[335931209,1724609439162,-60.19397172,0.00010999,2]
[335931210,1724609439172,-913.43004789,0.00010999,2]
[335931211,1724609439189,-355.55693075,0.00010999,2]
[335931212,1724609439483,155.0,9.537e-05,2]
[335931216,1724609439732,-215.78302136,0.00010999,2]
[335931217,1724609439742,-686.37842295,0.00010999,2]
[335931218,1724609439894,-2141.25728077,0.00010999,2]
[335931219,1724609439906,-433.88429628,0.00010999,2]
[335931220,1724609439915,-1484.77,0.00010999,2]
[335931221,1724609439925,-1555.3889834,0.00010999,2]
[335931222,1724609439936,-1706.1310166,0.00010999,2]
[335931223,1724609439945,-1388.03192237,0.00010999,2]
[335931224,1724609439956,-96.73807763,0.00010999,2]
[335931225,1724609439966,-3261.52,0.00010999,2]
[335931226,1724609439975,-3261.64917351,0.00010999,2]
[335931227,1724609439985,-1484.7862,0.00010999,2]
[335931228,1724609439994,-151.0,0.00010999,2]
[335931229,1724609440003,-500.0,0.00010999,2]
[335931230,1724609440012,-500.0,0.00010999,2]
[335931231,1724609440021,-500.0,0.00010999,2]
[335931232,1724609440030,-500.0,0.00010999,2]
[335931233,1724609440039,-500.0,0.00010999,2]
[335931234,1724609440049,-500.0,0.00010999,2]
[335931235,1724609440059,-500.0,0.00010999,2]
[335931236,1724609440069,-500.0,0.00010999,2]
[335931237,1724609440079,-171.4,0.00010999,2]
[335931238,1724609440088,-151.0,0.00010999,2]
[335931240,1724609440098,-500.0,0.00010999,2]
[335931241,1724609440109,-958.35,0.00010999,2]
[335931242,1724609440119,-151.0,0.00010999,2]
[335931243,1724609440129,-958.35,0.00010999,2]
[335931245,1724609440139,-958.35,0.00010999,2]
[335931247,1724609440147,-772.2619288,0.00010999,2]
[335931249,1724609440160,-186.0880712,0.00010999,2]
[335931251,1724609440169,-444.17034219,0.00010999,2]
[335931253,1724609440182,-514.17965781,0.00010999,2]
[335931255,1724609440191,-275.34871044,0.00010999,2]
[335931257,1724609440201,-441.48538942,0.00010999,2]
[335931260,1724609440219,-241.51590014,0.00010999,2]
[335931262,1724609440229,-3298.56177595,0.00010999,2]
[335931265,1724609440241,-317.58822405,0.00010999,2]
[335931267,1724609440251,-187.68159499,0.00010999,2]
[335931309,1724609441126,-770.66840501,0.00010999,2]
[335931310,1724609441136,-500.0,0.00010999,2]
[335931311,1724609441145,-3005.81341546,0.00010999,2]
[335931312,1724609441157,-610.33658454,0.00010999,2]
[335931313,1724609441166,-958.35,0.00010999,2]
[335931314,1724609441175,-500.0,0.00010999,2]
[335931315,1724609441184,-3616.15,0.00010999,2]
[335931316,1724609441195,-958.35,0.00010999,2]
[335931317,1724609441206,-500.0,0.00010999,2]
[335931318,1724609441215,-3616.15,0.00010999,2]
[335931319,1724609441224,-958.35,0.00010999,2]
[335931320,1724609441233,-500.0,0.00010999,2]
[335931321,1724609441244,-3616.15,0.00010999,2]
[335931322,1724609441255,-958.35,0.00010999,2]
[335931323,1724609441264,-500.0,0.00010999,2]
[335931324,1724609441273,-958.35,0.00010999,2]
[335931325,1724609441284,-3616.15,0.00010999,2]
[335931326,1724609441295,-507.54,0.00010999,2]
[335931327,1724609441305,-958.35,0.00010999,2]
[335931328,1724609441314,-3616.15,0.00010999,2]
[335931329,1724609441323,-3616.15,0.00010999,2]
[335931330,1724609441332,-958.35,0.00010999,2]
[335931331,1724609441341,-3616.15,0.00010999,2]
[335931332,1724609441351,-958.35,0.00010999,2]
[335931333,1724609441359,-3616.15,0.00010999,2]
[335931334,1724609441369,-958.35,0.00010999,2]
[335931335,1724609441379,-3616.15,0.00010999,2]
[335931336,1724609441391,-958.35,0.00010999,2]
[335931337,1724609441401,-3616.15,0.00010999,2]
[335931338,1724609441409,-958.35,0.00010999,2]
[335931339,1724609441419,-3616.15,0.00010999,2]
[335931340,1724609441428,-958.35,0.00010999,2]
[335931341,1724609441438,-3616.15,0.00010999,2]
[335931342,1724609441447,-958.54912493,0.00010999,2]
[335931343,1724609441457,-3616.15,0.00010999,2]
[335931344,1724609441469,-3616.15,0.00010999,2]
[335931345,1724609441479,-3616.15,0.00010999,2]
[335931346,1724609441488,-3616.15,0.00010999,2]
[335931347,1724609441497,-3616.15,0.00010999,2]
[335931348,1724609441507,-3616.2328307,0.00010999,2]
[335931349,1724609441516,-4269.1,0.00010999,2]
[335931350,1724609441525,-4269.1,0.00010999,2]
[335931351,1724609441535,-4269.1,0.00010999,2]
[335931352,1724609441544,-4269.1,0.00010999,2]
[335931353,1724609441554,-4269.1,0.00010999,2]
[335931354,1724609441563,-4269.1,0.00010999,2]
[335931355,1724609441572,-500.0,0.00010999,2]
[335931356,1724609441582,-4269.1,0.00010999,2]
[335931357,1724609441591,-500.0,0.00010999,2]
[335931358,1724609441600,-4269.1,0.00010999,2]
[335931359,1724609441609,-500.0,0.00010999,2]
[335931360,1724609441619,-4269.1,0.00010999,2]
[335931361,1724609441629,-237.5,0.00010999,2]
[335931362,1724609441638,-4269.1,0.00010999,2]
[335931363,1724609441647,-500.0,0.00010999,2]
[335931364,1724609441656,-4269.1,0.00010999,2]
[335931365,1724609441665,-500.0,0.00010999,2]
[335931366,1724609441674,-4269.1,0.00010999,2]
[335931367,1724609441684,-500.0,0.00010999,2]
[335931368,1724609441693,-4269.1,0.00010999,2]
[335931369,1724609441702,-500.0,0.00010999,2]
[335931370,1724609441711,-4269.1,0.00010999,2]
[335931371,1724609441720,-500.0,0.00010999,2]
[335931372,1724609441732,-4269.1,0.00010999,2]
[335931373,1724609441741,-263.54,0.00010999,2]
[335931374,1724609441751,-4269.1,0.00010999,2]
[335931375,1724609441760,-4269.1,0.00010999,2]
[335931376,1724609441769,-4269.1,0.00010999,2]
[335931377,1724609441778,-4269.1,0.00010999,2]
[335931378,1724609441787,-4269.2894618,0.00010999,2]
[335931379,1724609441796,-500.0,0.00010999,2]
[335931380,1724609441805,-500.0,0.00010999,2]
[335931381,1724609441815,-500.0,0.00010999,2]
[335931382,1724609441824,-500.0,0.00010999,2]
[335931383,1724609441833,-169.8,0.00010999,2]
[335931384,1724609441842,-536.03,0.00010999,2]
[335931385,1724609441851,-536.03,0.00010999,2]
[335931386,1724609441861,-536.03,0.00010999,2]
[335931387,1724609441870,-536.03,0.00010999,2]
[335931388,1724609441880,-536.03,0.00010999,2]
[335931389,1724609441890,-536.03,0.00010999,2]
[335931390,1724609441901,-536.03,0.00010999,2]
[335931391,1724609441911,-536.03,0.00010999,2]
[335931392,1724609441921,-536.03,0.00010999,2]
[335931393,1724609441936,-536.03,0.00010999,2]
[335931394,1724609441945,-536.03,0.00010999,2]
[335931395,1724609441957,-536.03,0.00010999,2]
[335931396,1724609441966,-536.03,0.00010999,2]
[335931397,1724609441979,-536.03,0.00010999,2]
[335931398,1724609441996,-536.03,0.00010999,2]
[335931399,1724609442006,-536.03,0.00010999,2]
[335931400,1724609442015,-536.03,0.00010999,2]
[335931401,1724609442025,-536.03,0.00010999,2]
[335931402,1724609442034,-536.03,0.00010999,2]
[335931403,1724609442043,-536.16,0.00010999,2]
[335931404,1724609442053,-500.0,0.00010999,2]
[335931405,1724609442062,-500.0,0.00010999,2]
[335931406,1724609442072,-500.0,0.00010999,2]
[335931407,1724609442081,-500.0,0.00010999,2]
[335931408,1724609442090,-500.0,0.00010999,2]
[335931409,1724609442099,-500.0,0.00010999,2]
[335931410,1724609442109,-500.0,0.00010999,2]
[335931411,1724609442118,-500.0,0.00010999,2]
[335931412,1724609442128,-500.0,0.00010999,2]
[335931413,1724609442137,-500.0,0.00010999,2]
[335931414,1724609442147,-500.0,0.00010999,2]
[335931415,1724609442157,-513.0,0.00010999,2]
[335931416,1724609442167,-77518.17080811,0.00011,2]
[335931417,1724609442181,-662.70634916,0.00011,2]
[335931418,1724609442193,-847.02556474,0.00011,2]
[335931419,1724609442203,-939.63137312,0.00011,2]
[335931420,1724609442215,-505.53116172,0.00011,2]
[335931421,1724609442226,-2954.1894928,0.00011,2]
[335931422,1724609442241,-7222.99174419,0.00011,2]
[335931438,1724609442818,-475.67259041,0.00010026,2]
[335931439,1724609442830,-2029.72782794,0.00010026,2]
[335931440,1724609442839,-500.0,0.00010999,2]
[335931441,1724609442850,-500.0,0.00010999,2]
[335931442,1724609442862,-500.0,0.00010999,2]
[335931443,1724609442872,-500.0,0.00010999,2]
[335931444,1724609443018,-104.34534417,0.00010999,2]
[335931445,1724609443032,-395.65465583,0.00010999,2]
[335931446,1724609443043,-500.0,0.00010999,2]
[335931447,1724609443054,-500.0,0.00010999,2]
[335931448,1724609443065,-500.0,0.00010999,2]
[335931449,1724609443074,-46.389213,0.00010999,2]
[335931450,1724609443087,-298.06142157,0.00010999,2]
[335931451,1724609443098,-7966.91461044,0.00011,2]
[335931452,1724609443115,-291.73346888,0.00011,2]
[335931453,1724609443128,-488.63018308,0.00011,2]
[335931454,1724609443140,-795.489987,0.00011,2]
[335931455,1724609443151,-622.9,0.00011,2]
[335931456,1724609443162,-3305.40182833,0.00011,2]
[335931457,1724609443176,-398.0041672,0.00011,2]
[335931458,1724609443187,-5200.0,0.00011,2]
[335931459,1724609443198,-2498.71308687,0.00011,2]
[335931498,1724609445817,-17349.90711685,0.00010698,2]
[335931499,1724609445843,-1774.4753,0.00010698,2]
[335931500,1724609445855,-711.38074383,0.00010698,2]
[335931504,1724609446472,-630.14263906,0.00010698,2]
[335931505,1724609446485,-727.03846357,0.00010698,2]
[335931506,1724609446497,-14555.26985468,0.00010698,2]
[335931507,1724609446506,-29665.77473481,0.00011,2]
[335931508,1724609446517,-723.56163438,0.00011,2]
[335931509,1724609446533,-709.37727316,0.000109,2]
[335931510,1724609446542,-1363.9162809,0.00011,2]
[335931511,1724609446553,-6940.04955554,0.00011,2]
[335931512,1724609446563,-615.56284133,0.00011,2]
[335931513,1724609446574,-4725.17883368,0.00011,2]
[335931514,1724609446585,-2806.70567716,0.00011,2]
[335931515,1724609446746,265.66856408,9.537e-05,2]
[335931518,1724609547806,15186.7202,9.945e-05,2]
[335931525,1724609717487,16250.27322581,9.945e-05,2]
[335931526,1724609719432,1050.0,0.0001,2]
[335931527,1724609745160,413.09,8.219e-05,2]
[335931528,1724609784721,601.65421845,0.0001,2]
[335931529,1724609816987,541.92,9.99e-05,2]
[335931530,1724609830056,500.0,0.0001,2]
[335931531,1724609830383,600.0,0.0001,2]
[335931532,1724609831049,979.0,0.0001,2]
[335931533,1724609835713,-250.0,0.00010059,2]
[335931534,1724609835737,-184.0,0.00010178,2]
[335931535,1724609835760,-328.0,0.00010179,2]
[335931536,1724609835783,-300.0,0.00010404,2]
[335931537,1724609835805,-17670.11,0.00010405,2]
[335931538,1724609835828,-413.09,0.00010479,2]
[335931539,1724609835850,-3014.0292,0.000106,2]
[335931540,1724609835871,-260.2496,0.000107,2]
[335931541,1724609835892,-150.0,0.00010798,2]
[335931542,1724609836087,-3401.3565,0.00010799,2]
[335931543,1724609836182,485.07840464,0.0001,2]
[335931544,1724609840403,-540.49188591,0.00010078,2]
[335931545,1724609840427,-15056.3565,0.00010799,2]
[335931546,1724609840449,-1000.0,0.00010799,2]
[335931547,1724609840472,-265.93195,0.0001089,2]
[335931548,1724609840495,-223.376,0.000109,2]
[335931549,1724609840518,-822.3925,0.000109,2]
[335931550,1724609840545,-9967.7323,0.000109,2]
[335931551,1724609840567,-152.79080492,0.000109,2]
[335931552,1724609840589,-1019.72151151,0.000109,2]
[335931553,1724609840614,-54262.8012,0.000109,2]
[335931554,1724609840636,-628.12714486,0.000109,2]
[335931555,1724609840659,-3143.70047368,0.000109,2]
[335931556,1724609840682,-200.34942875,0.00010945,2]
[335931557,1724609840704,-3871.60638696,0.00010949,2]
[335931558,1724609840726,-2505.40041835,0.00010949,2]
[335931559,1724609840748,-155.0,0.00010949,2]
[335931560,1724609840771,-1257.62857871,0.00010949,2]
[335931561,1724609840794,-303.90469939,0.00010949,2]
[335931562,1724609840818,-1192.55775368,0.00010949,2]
[335931563,1724609840846,-500.0,0.00010958,2]
[335931564,1724609840870,-500.0,0.00010958,2]
[335931565,1724609840892,-500.0,0.00010958,2]
[335931566,1724609840915,-500.0,0.00010958,2]
[335931567,1724609840939,-500.0,0.00010958,2]
[335931568,1724609840962,-500.0,0.00010958,2]
[335931569,1724609840985,-402.02,0.00010958,2]
[335931570,1724609841010,-391.95,0.00010958,2]
[335931571,1724609841034,-158.06,0.00010959,2]
[335931572,1724609841056,-250.0,0.00010959,2]
[335931573,1724609841077,-1500.0,0.00010959,2]
[335931574,1724609841101,-422.35,0.00010959,2]
[335931575,1724609841124,-528.91996067,0.00010979,2]
[335931576,1724609841146,-419.57836223,0.00010979,2]
[335931577,1724609841168,-155.0,0.00010979,2]
[335931578,1724609841191,-470.90780405,0.00010979,2]
[335931579,1724609841214,-35748.21411799,0.00010989,2]
[335931580,1724609841236,-949.19944505,0.00010993,2]
[335931581,1724609841259,-310.25768998,0.00010997,2]
[335931582,1724609841282,-2482.06151984,0.00010997,2]
[335931583,1724609841306,-500.0,0.00010998,2]
[335931584,1724609841331,-290.5066,0.00010998,2]
[335931585,1724609841353,-7075.62,0.00010998,2]
[335931586,1724609841376,-500.0,0.00010998,2]
[335931587,1724609841399,-247.53,0.00010998,2]
[335931588,1724609841422,-500.0,0.00010998,2]
[335931589,1724609841444,-500.0,0.00010998,2]
[335931590,1724609841467,-330.4922593,0.00010998,2]
[335931591,1724609841490,-1000.0,0.00010999,2]
[335931592,1724609841512,-1000.0,0.00010999,2]
[335931593,1724609841538,-1000.0,0.00010999,2]
[335931594,1724609841560,-1000.0,0.00010999,2]
[335931595,1724609841582,-1000.0,0.00010999,2]
[335931596,1724609841606,-1000.0,0.00010999,2]
[335931597,1724609841628,-1000.0,0.00010999,2]
[335931598,1724609841650,-1000.0,0.00010999,2]
[335931599,1724609841672,-740.74290093,0.00010999,2]
[335931600,1724609841694,-215.89143335,0.00010999,2]
[335931601,1724609841717,-501.49882417,0.00010999,2]
[335931602,1724609841740,-500.0,0.00010999,2]
[335931603,1724609841763,-383.6206245,0.00010999,2]
[335931604,1724609843510,176.73966344,0.000109,2]
[335931605,1724609844110,1051.05102404,0.0001,2]
[335931606,1724609891794,500.0,0.0001,2]
[335931607,1724609933257,251.03,9.993e-05,2]
[335931608,1724609936273,299.50985244,0.0001,2]
[335931609,1724609944864,413.4282629,0.0001,2]
[335931610,1724609953351,182.01298739,0.0001,2]
[335931611,1724609955696,485.15804996,0.0001,2]
[335931613,1724609966209,162.67323732,0.0001,2]
[335931615,1724609975478,23900.0,9.956e-05,2]
[335931616,1724609977178,170.6347928,0.0001,2]
[335931617,1724609985411,299.50985244,0.0001,2]
[335931618,1724609986752,500.0,0.0001,2]
[335931619,1724609993112,542.51258823,0.0001,2]
[335931621,1724610072758,500.0,0.0001,2]
[335931623,1724610167274,500.0,0.0001,2]
[335931625,1724610207359,737.6,9.933e-05,2]
[335931626,1724610295991,250.0,9.933e-05,2]
[335931627,1724610305612,34838.77,0.00010018,2]
[335931628,1724610314853,290.86586941,9.888e-05,2]
[335931629,1724610320185,431.23,8.219e-05,2]
[335931630,1724610337320,693.93284973,9.933e-05,2]
[335931632,1724610342957,240.41734105,9.933e-05,2]
[335931633,1724610351884,20410.02713101,9.933e-05,2]
[335931635,1724610363937,211.85239586,9.933e-05,2]
[335931636,1724610364439,379.56,9.914e-05,2]
[335931637,1724610388515,16250.27322581,9.933e-05,2]
[335931638,1724610441355,839.66111962,9.933e-05,2]
[335931639,1724610460334,199.17,9.904e-05,2]
[335931640,1724610460389,10693.24061787,9.933e-05,2]
[335931641,1724610464631,3145.61580839,9.933e-05,2]
[335931642,1724610483181,904.48338785,9.933e-05,2]
[335931646,1724610536195,1768.29,9.899e-05,2]
[335931652,1724610548752,23900.0,9.886e-05,2]
[335931676,1724610631833,-318.553,0.00010305,2]
[335931678,1724610631843,-146.447,0.00010473,2]
[335931680,1724610631856,-284.783,0.00010473,2]
[335931682,1724610631865,-192.47075282,0.00010505,2]
[335931683,1724610631875,-157.70095368,0.00010566,2]
[335931684,1724610631885,-397.05842479,0.00010576,2]
[335931685,1724610631897,-329.94157521,0.00010576,2]
[335931686,1724610631907,-34.80285813,0.00010699,2]
[335931687,1724610631919,-120.73392799,0.00010699,2]
[335931688,1724610631929,-651.79060203,0.00010752,2]
[335931689,1724610631939,-1500.0,0.00010778,2]
[335931690,1724610631948,-300.0,0.00010779,2]
[335931691,1724610631958,-167.0,0.00010779,2]
[335931692,1724610631968,-656.71720159,0.0001078,2]
[335931693,1724610631979,-5300.0,0.0001078,2]
[335931694,1724610631991,-5041.98924217,0.0001078,2]
[335931695,1724610632001,-2505.40041835,0.00010799,2]
[335931696,1724610632010,-5392.6329,0.000108,2]
[335931697,1724610632020,-2272.0479,0.000108,2]
[335931698,1724610632030,-13014.10736069,0.000108,2]
[335931699,1724610632040,-315.39429931,0.000108,2]
[335931700,1724610632049,-315.39429931,0.00010825,2]
[335931701,1724610632057,-315.39429931,0.0001085,2]
[335931702,1724610632067,-183.91967457,0.00010852,2]
[335931703,1724610632076,-5022.25190481,0.00010852,2]
[335931704,1724610632085,-150.0,0.0001086,2]
[335931705,1724610632095,-155.49286608,0.00010861,2]
[335931706,1724610632105,-155.15643283,0.00010861,2]
[335931707,1724610632117,-418.65388325,0.00010861,2]
[335931708,1724610632127,-3045.7727014,0.00010861,2]
[335931709,1724610632137,-283.60859595,0.00010861,2]
[335931710,1724610632146,-328.33768382,0.00010861,2]
[335931711,1724610632156,-298.82691546,0.00010861,2]
[335931712,1724610632166,-157.71824926,0.00010861,2]
[335931713,1724610632175,-203.91064443,0.00010862,2]
[335931714,1724610632185,-393.8276946,0.00010862,2]
[335931715,1724610632195,-200.0,0.00010873,2]
[335931716,1724610632205,-343.19821447,0.00010873,2]
[335931717,1724610632215,-201.53532999,0.00010873,2]
[335931718,1724610632225,-737.85,0.00010877,14]
[335931720,1724610632235,-314.27233997,0.00010888,2]
[335931721,1724610632244,-155.0,0.00010888,2]
[335931722,1724610632254,-3888.8824,0.00010889,2]
[335931723,1724610632264,-3329.8603,0.00010889,2]
[335931724,1724610632273,-150.85,0.0001089,2]
[335931725,1724610632283,-175.5090904,0.0001089,2]
[335931726,1724610632292,-11746.70365617,0.0001089,2]
[335931727,1724610632302,-1617.93226539,0.0001089,2]
[335931728,1724610632311,-198.56896947,0.00010892,2]
[335931729,1724610632324,-606.4471054,0.00010892,2]
[335931730,1724610632335,-3182.66143813,0.00010892,2]
[335931731,1724610632347,-499.60047608,0.00010892,2]
[335931732,1724610632364,-496.46055869,0.00010892,2]
[335931733,1724610632375,-570.09,0.00010892,2]
[335931734,1724610632386,-971.80840618,0.00010892,2]
[335931735,1724610632397,-573.34384605,0.00010892,2]
[335931736,1724610632407,-644.57094981,0.00010897,2]
[335931737,1724610632419,-355.42905019,0.00010897,2]
[335931738,1724610632428,-185.411,0.00010897,2]
[335931739,1724610632439,-299.69025526,0.00010899,2]
[335931740,1724610632451,-1604.23397071,0.00010899,2]
[335931741,1724610633060,-834.1843,0.00010899,2]
[335931742,1724610633076,-250.33780553,0.00010899,2]
[335931743,1724610633088,-840.55227636,0.00010899,2]
[335931744,1724610633097,-899.44772364,0.00010899,2]
[335931745,1724610633109,-2691.68471445,0.00010899,2]
[335931746,1724610633122,-237.86616977,0.00010899,2]
[335931747,1724610633132,-3828.99860786,0.00010899,2]
[335931748,1724610633141,-1296.33522239,0.00010899,2]
[335931752,1724610637881,-408.26290781,0.00010713,2]
[335931753,1724610637897,-2097.13751054,0.00010713,2]
[335931754,1724610637906,-315.39429931,0.00010875,2]
[335931755,1724610637916,-2532.66338547,0.00010899,2]
[335931756,1724610637925,-3828.99860786,0.00010899,2]
[335931757,1724610637934,-3828.99860786,0.00010899,2]
[335931758,1724610637944,-499.99,0.00010899,2]
[335931759,1724610637953,-11473.2791,0.000109,2]
[335931760,1724610637962,-500.0,0.000109,2]
[335931761,1724610637972,-4289.745,0.000109,2]
[335931762,1724610637981,-176.3262,0.000109,2]
[335931763,1724610637990,-51851.5423,0.000109,2]
[335931764,1724610637999,-236588.57620251,0.000109,2]
[335931765,1724610638010,-652.16989619,0.000109,2]
[335931766,1724610638021,-2835.64790286,0.000109,2]
[335931767,1724610638032,-257.54622601,0.000109,2]
[335931768,1724610638062,-5873.22356511,0.000109,2]
[335931769,1724610638074,-296.48546432,0.000109,2]
[335931770,1724610638086,-593.26334,0.000109,2]
[335931771,1724610638099,-270.9400001,0.000109,2]
[335931772,1724610638142,-771.07115909,0.000109,2]
[335931773,1724610638225,-1202.39730484,0.000109,2]
[335931794,1724610640122,-3562.96248008,0.000109,2]
[335931795,1724610640134,-2778.37187532,0.000109,2]
[335931796,1724610640145,-1609.608,0.000109,2]
[335931797,1724610640156,-676.78766256,0.000109,2]
[335931798,1724610640219,-522.77982189,0.000109,2]
[335931799,1724610640230,-2019.92611136,0.000109,2]
[335931800,1724610640241,-607.34588406,0.000109,2]
[335931801,1724610640252,-1767.49685005,0.000109,2]
[335931802,1724610640263,-379.92281536,0.000109,2]
[335931803,1724610640318,-344.62556429,0.000109,2]
[335931804,1724610640400,-2016.437266,0.000109,2]
[335931805,1724610640411,-803.58675098,0.000109,2]
[335931806,1724610640422,-6234.49682992,0.000109,2]
[335931807,1724610640433,-1043.21965598,0.000109,2]
[335931905,1724610643164,-557.09503538,0.000109,2]
[335931906,1724610643176,-2242.26782684,0.000109,2]
[335931907,1724610643249,-3853.8,0.000109,2]
[335931923,1724610645843,-34857.86405609,0.000109,2]
[335931924,1724610645857,-125469.69650721,0.000109,2]
[335931925,1724610645869,-2040.06066112,0.000109,2]
[335931926,1724610645880,-2585.58452161,0.000109,2]
[335931927,1724610645893,-3364.54143253,0.000109,2]
[335931928,1724610645903,-18730.04638091,0.000109,2]
[335931929,1724610645914,-11855.5386844,0.000109,2]
[335931930,1724610645925,-32250.84540693,0.000109,2]
[335931931,1724610645954,-62957.2788581,0.000109,2]
[335931932,1724610645964,-1199.799,0.000109,2]
[335931933,1724610645973,-230.80232664,0.000109,2]
[335931934,1724610645982,-3828.99860786,0.000109,2]
[335931935,1724610645991,-344.00949162,0.000109,2]
[335931936,1724610646000,-790.97,0.000109,2]
[335931937,1724610646010,-167.87067417,0.000109,2]
[335931938,1724610646019,-167.87067416,0.000109,2]
[335931939,1724610646028,-1024.74628468,0.000109,2]
[335931940,1724610646037,-315.39429931,0.000109,2]
[335931941,1724610646046,-500.0,0.00010912,2]
[335931942,1724610646055,-1312.97,0.00010916,2]
[335931943,1724610646064,-150.85,0.00010948,2]
[335931944,1724610646073,-500.0,0.00010958,2]
[335931945,1724610646082,-500.0,0.00010958,2]
[335931946,1724610646091,-500.0,0.00010958,2]
[335931947,1724610646101,-376.57995716,0.00010958,2]
[335931948,1724610646110,-500.0,0.00010958,2]
[335931949,1724610646120,-492.56,0.00010958,2]
[335931950,1724610646129,-500.0,0.00010958,2]
[335931951,1724610646139,-278.25,0.00010958,2]
[335931952,1724610646149,-500.0,0.00010958,2]
[335931953,1724610646160,-185.12,0.00010958,2]
[335931954,1724610646170,-500.0,0.00010958,2]
[335931955,1724610646179,-500.0,0.00010958,2]
[335931956,1724610646189,-500.0,0.00010958,2]
[335931957,1724610646198,-500.0,0.00010958,2]
[335931958,1724610646207,-500.0,0.00010958,2]
[335931959,1724610646216,-500.0,0.00010958,2]
[335931960,1724610646225,-500.0,0.00010958,2]
[335931961,1724610646234,-500.0,0.00010958,2]
[335931962,1724610646244,-500.0,0.00010958,2]
[335931963,1724610646253,-500.0,0.00010958,2]
[335931964,1724610646262,-500.0,0.00010958,2]
[335931965,1724610646271,-500.0,0.00010958,2]
[335931966,1724610646280,-500.0,0.00010958,2]
[335931967,1724610646290,-500.0,0.00010958,2]
[335931968,1724610646298,-500.0,0.00010958,2]
[335931969,1724610646308,-200.0,0.00010959,2]
[335931970,1724610646317,-1500.0,0.00010959,2]
[335931971,1724610646460,-167.29,0.00010959,2]
[335931972,1724610646472,-250.0,0.00010959,2]
[335931973,1724610646483,-303.44197528,0.00010979,2]
[335931974,1724610646493,-500.0,0.00010988,2]
[335931975,1724610646502,-150.85,0.0001099,2]
[335931976,1724610646511,-150.85,0.0001099,2]
[335931977,1724610646520,-150.85,0.0001099,2]
[335931978,1724610646529,-150.85,0.0001099,2]
[335931979,1724610646538,-150.85,0.0001099,2]
[335931980,1724610646547,-150.85,0.0001099,2]
[335931981,1724610646557,-150.85,0.0001099,2]
[335931982,1724610646566,-150.85,0.0001099,2]
[335931983,1724610646576,-150.85,0.0001099,2]
[335931984,1724610646586,-150.85,0.0001099,2]
[335931985,1724610646595,-150.85,0.0001099,2]
[335931986,1724610646604,-150.85,0.0001099,2]
[335931987,1724610646613,-150.85,0.0001099,2]
[335931988,1724610646623,-150.85,0.0001099,2]
[335931989,1724610646632,-150.85,0.0001099,2]
[335931990,1724610646641,-150.85,0.0001099,2]
[335931991,1724610646652,-150.85,0.0001099,2]
[335931992,1724610646661,-150.85,0.0001099,2]
[335931993,1724610646670,-150.85,0.0001099,2]
[335931994,1724610646681,-150.85,0.0001099,2]
[335931995,1724610646691,-150.85,0.0001099,2]
[335931996,1724610646701,-150.85,0.0001099,2]
[335931997,1724610646711,-150.85,0.0001099,2]
[335931998,1724610646721,-150.85,0.0001099,2]